[Event "Thailand Pattaya Open 2018"]
[Site "Pattaya"]
[Date "2018.10.29"]
[Round "1"]
[White "Anup, Kumar S."]
[Black "Nguyen, Huynh Minh Huy"]
[Result "0-1"]
[ECO "D48"]
[WhiteElo "1800"]
[BlackElo "2410"]
[Annotator "ChessBase"]
[PlyCount "122"]
[EventDate "2018.10.24"]
[EventType "swiss"]
[EventCountry "THA"]
[SourceTitle "playchess.com"]
[Source "ChessBase"]
[SourceQuality "1"]
[TimeControl "5400+30"]

1. d4 {[%emt 0:00:00]} d5 {[%emt 0:00:12]} 2. c4 {[%emt 0:00:00]} c6 {[%emt 0:00:07]} 3. Nc3 {[%emt 0:00:11]} Nf6 {[%emt 0:00:09]} 4. e3 {[%emt 0:00:28]} a6 {[%emt 0:00:36]} 5. Nf3 {[%emt 0:00:52]} e6 {[%emt 0:01:31]} 6. Bd3 {[%emt 0:01:47]} dxc4 {[%emt 0:00:41]} 7. Bxc4 {[%emt 0:04:13]} b5 {[%emt 0:00:09]} 8. Bd3 {[%emt 0:04:10]} Bb7 {[%emt 0:00:52]} 9. O-O {[%emt 0:01:19]} c5 {[%emt 0:03:18]} 10. b3 {[%emt 0:05:11]} Nbd7 {[%emt 0:02:21]} 11. Bb2 {[%emt 0:05:31]} Bd6 {[%emt 0:00:37]} 12. Rc1 {[%emt 0:02:52]} O-O {[%emt 0:01:33]} 13. h3 {[%emt 0:01:27]} Qe7 {[%emt 0:06:12]} 14. Qe2 {[%emt 0:05:22]} cxd4 {[%emt 0:06:22]} 15. Nxd4 {[%emt 0:02:51]} Nc5 {[%emt 0:01:09]} 16. Bb1 {[%emt 0:01:56]} Rac8 {[%emt 0:07:35]} 17. b4 {[%emt 0:05:25]} Ncd7 {[%emt 0:01:30]} 18. a3 {[%emt 0:02:01]} Nb6 {[%emt 0:01:56]} 19. Bd3 {[%emt 0:06:47]} Bb8 {[%emt 0:19:05]} 20. Rfd1 {[%emt 0:12:33]} Nfd7 {[%emt 0:08:44]} 21. Be4 {[%emt 0:16:04]} Nf6 {[%emt 0:11:27]} 22. Bxb7 {[%emt 0:04:35]} Qxb7 {[%emt 0:00:07]} 23. Nf3 {[%emt 0:01:50]} Nc4 {[%emt 0:02:27]} 24. Nb1 {[%emt 0:05:50]} Ne4 {[%emt 0:00:37]} 25. Rd3 {[%emt 0:03:17]} Rcd8 {[%emt 0:06:08]} 26. Rcd1 {[%emt 0:00:56]} Qc7 {[%emt 0:00:28]} 27. Ba1 {[%emt 0:03:32]} h6 {[%emt 0:04:28]} 28. Rxd8 {[%emt 0:00:31]} Rxd8 {[%emt 0:00:08]} 29. Rxd8+ {[%emt 0:00:08]} Qxd8 {[%emt 0:00:05]} 30. a4 {[%emt 0:01:10]} Qd6 {[%emt 0:02:30]} 31. Nc3 {[%emt 0:00:48]} Qxb4 {[%emt 0:00:22]} 32. Nxe4 {[%emt 0:00:46]} Qb1+ {[%emt 0:00:06]} 33. Qe1 {[%emt 0:00:11]} Qxe4 {[%emt 0:00:07]} 34. axb5 {[%emt 0:00:14]} axb5 {[%emt 0:00:05]} 35. Qc3 {[%emt 0:00:28]} Qb1+ {[%emt 0:00:12]} 36. Qe1 {[%emt 0:00:40]} Qxe1+ {[%emt 0:03:20]} 37. Nxe1 {[%emt 0:00:01]} f5 {[%emt 0:00:19]} 38. Nc2 {[%emt 0:00:44]} Kf7 {[%emt 0:00:44]} 39. Bc3 {[%emt 0:00:27]} e5 {[%emt 0:00:40]} 40. Bb4 {[%emt 0:00:30]} g6 {[%emt 0:00:34]} 41. Kf1 {[%emt 0:00:14]} Ke6 {[%emt 0:00:06]} 42. Ke2 {[%emt 0:00:16]} h5 {[%emt 0:01:01]} 43. f4 {[%emt 0:01:31]} Kd5 {[%emt 0:01:47]} 44. g3 {[%emt 0:00:50]} Ba7 {[%emt 0:01:12]} 45. Kf3 {[%emt 0:01:01]} Bb6 {[%emt 0:02:25]} 46. fxe5 {[%emt 0:00:10]} Nxe5+ {[%emt 0:00:11]} 47. Kf4 {[%emt 0:00:51]} Nf7 {[%emt 0:00:15]} 48. g4 {[%emt 0:00:27]} Bc7+ {[%emt 0:00:06]} 49. Kf3 {[%emt 0:00:27]} fxg4+ {[%emt 0:00:30]} 50. hxg4 {[%emt 0:00:36]} Ne5+ {[%emt 0:00:32]} 51. Kf4 {[%emt 0:00:55]} Nxg4+ {[%emt 0:00:16]} 52. Kg5 {[%emt 0:00:01]} Ne5 {[%emt 0:00:07]} 53. Be1 {[%emt 0:00:49]} Bd8+ {[%emt 0:01:29]} 54. Kf4 {[%emt 0:00:17]} Nd3+ {[%emt 0:00:23]} 55. Kf3 {[%emt 0:00:22]} Nxe1+ {[%emt 0:00:05]} 56. Nxe1 {[%emt 0:00:05]} b4 {[%emt 0:00:04]} 57. Nd3 {[%emt 0:00:13]} b3 {[%emt 0:00:21]} 58. e4+ {[%emt 0:01:04]} Kd4 {[%emt 0:00:07]} 59. Nb2 {[%emt 0:00:18]} g5 {[%emt 0:00:10]} 60. Na4 {[%emt 0:00:15]} Bc7 {[%emt 0:00:04]} 61. Nb2 {[%emt 0:00:18]} g4+ {[%emt 0:00:05]} 0-1

[Event "Thailand Pattaya Open 2018"]
[Site "Pattaya"]
[Date "2018.10.29"]
[Round "4"]
[White "Grafil, Franz Robert"]
[Black "Quizon, Daniel"]
[Result "1/2-1/2"]
[ECO "A15"]
[WhiteElo "2219"]
[BlackElo "2334"]
[Annotator "ChessBase"]
[PlyCount "87"]
[EventDate "2018.10.24"]
[EventType "swiss"]
[EventCountry "THA"]
[SourceTitle "playchess.com"]
[Source "ChessBase"]
[SourceQuality "1"]
[TimeControl "5400+30"]

1. Nf3 {[%emt 0:00:00]} Nf6 {[%emt 0:03:03]} 2. c4 {[%emt 0:00:30]} g6 {[%emt 0:01:06]} 3. b4 {[%emt 0:00:50]} Bg7 {[%emt 0:07:56]} 4. Bb2 {[%emt 0:00:24]} d6 {[%emt 0:00:46]} 5. g3 {[%emt 0:00:46]} O-O {[%emt 0:06:02]} 6. Bg2 {[%emt 0:00:35]} e5 {[%emt 0:01:12]} 7. d3 {[%emt 0:01:25]} a5 {[%emt 0:03:27]} 8. b5 {[%emt 0:02:21]} Re8 {[%emt 0:04:53]} 9. O-O {[%emt 0:04:05]} Nbd7 {[%emt 0:02:44]} 10. Nbd2 {[%emt 0:04:49]} Nc5 {[%emt 0:09:57]} 11. Rc1 {[%emt 0:08:35]} Nfd7 {[%emt 0:11:03]} 12. Qc2 {[%emt 0:03:41]} Qe7 {[%emt 0:01:45]} 13. e4 {[%emt 0:04:28]} Ne6 {[%emt 0:02:16]} 14. Rfe1 {[%emt 0:04:52]} Ndc5 {[%emt 0:04:38]} 15. h3 {[%emt 0:05:29]} Bd7 {[%emt 0:02:19]} 16. Nb3 {[%emt 0:07:27]} Nxb3 {[%emt 0:03:29]} 17. Qxb3 {[%emt 0:00:58]} a4 {[%emt 0:01:41]} 18. Qb4 {[%emt 0:06:32]} c6 {[%emt 0:03:43]} 19. Ba3 {[%emt 0:01:29]} Nc5 {[%emt 0:00:52]} 20. Rcd1 {[%emt 0:00:53]} cxb5 {[%emt 0:09:35]} 21. cxb5 {[%emt 0:00:42]} Be6 {[%emt 0:00:58]} 22. d4 {[%emt 0:06:41]} exd4 {[%emt 0:01:18]} 23. e5 {[%emt 0:00:14]} b6 {[%emt 0:11:40]} 24. Nxd4 {[%emt 0:05:56]} dxe5 {[%emt 0:02:54]} 25. Nxe6 {[%emt 0:04:17]} Qxe6 {[%emt 0:00:08]} 26. Bxa8 {[%emt 0:01:00]} Rxa8 {[%emt 0:00:01]} 27. Qd2 {[%emt 0:00:16]} Rc8 {[%emt 0:02:58]} 28. Qd6 {[%emt 0:05:02]} Qxa2 {[%emt 0:00:11]} 29. Bxc5 {[%emt 0:00:41]} Bf8 {[%emt 0:00:22]} 30. Qxb6 {[%emt 0:04:16]} Bxc5 {[%emt 0:00:22]} 31. Qf6 {[%emt 0:00:10]} Bd4 {[%emt 0:00:39]} 32. b6 {[%emt 0:03:01]} Qb3 {[%emt 0:00:30]} 33. Rxd4 {[%emt 0:05:04]} exd4 {[%emt 0:00:38]} 34. Qxd4 {[%emt 0:00:40]} a3 {[%emt 0:00:55]} 35. Qd7 {[%emt 0:04:44]} Rf8 {[%emt 0:00:01]} 36. Qa7 {[%emt 0:02:56]} a2 {[%emt 0:00:36]} 37. b7 {[%emt 0:00:11]} Qb1 {[%emt 0:00:24]} 38. Rf1 {[%emt 0:00:08]} Rd8 {[%emt 0:01:06]} 39. Qa8 {[%emt 0:00:38]} Rf8 {[%emt 0:00:19]} 40. h4 {[%emt 0:00:40]} h5 {[%emt 0:00:13]} 41. Kh2 {[%emt 0:01:19]} Qxf1 {[%emt 0:00:35]} 42. Qxf8+ {[%emt 0:00:01]} Kxf8 {[%emt 0:00:08]} 43. b8=Q+ {[%emt 0:00:03]} Kg7 {[%emt 0:00:33]} 44. Qb2+ {[%emt 0:00:03]} 1/2-1/2

[Event "Thailand Pattaya Open 2018"]
[Site "Pattaya"]
[Date "2018.10.29"]
[Round "5"]
[White "Tran, Tuan Minh"]
[Black "Pourramezanali, Amirreza"]
[Result "1-0"]
[ECO "E20"]
[WhiteElo "2506"]
[BlackElo "2533"]
[Annotator "ChessBase"]
[PlyCount "67"]
[EventDate "2018.10.24"]
[EventType "swiss"]
[EventCountry "THA"]
[SourceTitle "playchess.com"]
[Source "ChessBase"]
[SourceQuality "1"]
[TimeControl "5400+30"]

1. d4 {[%emt 0:03:51]} e6 {[%emt 0:00:00]} 2. c4 {[%emt 0:00:17]} Nf6 {[%emt 0:00:00]} 3. g3 {[%emt 0:00:31]} d5 {[%emt 0:00:45]} 4. Bg2 {[%emt 0:00:13]} Bb4+ {[%emt 0:00:07]} 5. Nc3 {[%emt 0:03:06]} O-O {[%emt 0:00:16]} 6. Nf3 {[%emt 0:00:07]} dxc4 {[%emt 0:01:13]} 7. O-O {[%emt 0:00:30]} Nc6 {[%emt 0:01:35]} 8. Bg5 {[%emt 0:01:47]} h6 {[%emt 0:03:50]} 9. Bxf6 {[%emt 0:01:14]} Qxf6 {[%emt 0:00:02]} 10. e3 {[%emt 0:00:45]} Rb8 {[%emt 0:10:46]} 11. Ne4 {[%emt 0:37:13]} Qd8 {[%emt 0:02:01]} 12. Qc2 {[%emt 0:17:08]} b5 {[%emt 0:04:20]} 13. b3 {[%emt 0:00:32]} cxb3 {[%emt 0:27:03]} 14. axb3 {[%emt 0:00:15]} Rb6 {[%emt 0:00:09]} 15. Ne1 {[%emt 0:06:07]} e5 {[%emt 0:06:03]} 16. d5 {[%emt 0:00:25]} Ne7 {[%emt 0:02:22]} 17. Nd3 {[%emt 0:01:16]} Nxd5 {[%emt 0:02:40]} 18. Rxa7 {[%emt 0:02:08]} f5 {[%emt 0:05:07]} 19. Rd1 {[%emt 0:09:22]} fxe4 {[%emt 0:06:59]} 20. Nxb4 {[%emt 0:00:05]} Nxb4 {[%emt 0:00:10]} 21. Rxd8 {[%emt 0:00:08]} Nxc2 {[%emt 0:00:05]} 22. Rxf8+ {[%emt 0:00:12]} Kxf8 {[%emt 0:00:04]} 23. Ra8 {[%emt 0:00:24]} Ke7 {[%emt 0:01:23]} 24. Rxc8 {[%emt 0:00:05]} Kd7 {[%emt 0:00:05]} 25. Rg8 {[%emt 0:03:49]} Na1 {[%emt 0:02:14]} 26. Rxg7+ {[%emt 0:00:53]} Kd6 {[%emt 0:01:45]} 27. b4 {[%emt 0:00:19]} Nc2 {[%emt 0:00:38]} 28. Bxe4 {[%emt 0:00:21]} Nxb4 {[%emt 0:00:01]} 29. Rh7 {[%emt 0:00:02]} Nd5 {[%emt 0:10:25]} 30. Rxh6+ {[%emt 0:00:11]} Kc5 {[%emt 0:00:00]} 31. Rxb6 {[%emt 0:02:47]} cxb6 {[%emt 0:00:35]} 32. h4 {[%emt 0:04:31]} b4 {[%emt 0:00:04]} 33. h5 {[%emt 0:01:03]} Nf6 {[%emt 0:02:54]} 34. h6 {[%emt 0:00:12]} 1-0

[Event "Thailand Pattaya Open 2018"]
[Site "Pattaya"]
[Date "2018.10.29"]
[Round "5"]
[White "Persson, Richard"]
[Black "Villamayor, Buenaventura"]
[Result "0-1"]
[ECO "B24"]
[WhiteElo "2138"]
[BlackElo "2403"]
[Annotator "ChessBase"]
[PlyCount "54"]
[EventDate "2018.10.24"]
[EventType "swiss"]
[EventCountry "THA"]
[SourceTitle "playchess.com"]
[Source "ChessBase"]
[SourceQuality "1"]
[TimeControl "5400+30"]

1. g3 {[%emt 0:00:44]} c5 {[%emt 0:01:09]} 2. Bg2 {[%emt 0:02:11]} Nc6 {[%emt 0:00:27]} 3. Nc3 {[%emt 0:09:49]} g6 {[%emt 0:02:07]} 4. e4 {[%emt 0:02:06]} Bg7 {[%emt 0:00:08]} 5. f4 {[%emt 0:01:12]} e6 {[%emt 0:07:43]} 6. d3 {[%emt 0:14:27]} Nge7 {[%emt 0:01:16]} 7. Nf3 {[%emt 0:04:18]} d5 {[%emt 0:01:19]} 8. O-O {[%emt 0:10:52]} O-O {[%emt 0:03:06]} 9. Kh1 {[%emt 0:18:25]} Rb8 {[%emt 0:02:44]} 10. Bd2 {[%emt 0:10:08]} b5 {[%emt 0:01:27]} 11. Rb1 {[%emt 0:01:13]} b4 {[%emt 0:01:37]} 12. Ne2 {[%emt 0:00:13]} dxe4 {[%emt 0:00:56]} 13. dxe4 {[%emt 0:00:16]} Ba6 {[%emt 0:00:24]} 14. Re1 {[%emt 0:02:42]} Qb6 {[%emt 0:04:31]} 15. Qc1 {[%emt 0:02:58]} Rfd8 {[%emt 0:01:31]} 16. Be3 {[%emt 0:01:52]} Nd4 {[%emt 0:01:02]} 17. Nexd4 {[%emt 0:01:22]} cxd4 {[%emt 0:01:34]} 18. Bg1 {[%emt 0:00:24]} Qa5 {[%emt 0:06:50]} 19. Rd1 {[%emt 0:04:58]} d3 {[%emt 0:03:15]} 20. cxd3 {[%emt 0:05:43]} Bxd3 {[%emt 0:00:54]} 21. e5 {[%emt 0:02:06]} Rbc8 {[%emt 0:02:09]} 22. Qe3 {[%emt 0:01:22]} Bxb1 {[%emt 0:00:13]} 23. Rxb1 {[%emt 0:00:16]} Qxa2 {[%emt 0:00:13]} 24. Re1 {[%emt 0:01:19]} a5 {[%emt 0:00:34]} 25. Re2 {[%emt 0:00:18]} Rd1 {[%emt 0:01:12]} 26. h4 {[%emt 0:00:29]} Nf5 {[%emt 0:00:23]} 27. Qf2 {[%emt 0:00:11]} Bf8 {[%emt 0:00:20]} 0-1

[Event "Thailand Pattaya Open 2018"]
[Site "Pattaya"]
[Date "2018.10.29"]
[Round "6"]
[White "Pourramezanali, Amirreza"]
[Black "Salvador, Louie"]
[Result "1-0"]
[ECO "A11"]
[WhiteElo "2533"]
[BlackElo "2192"]
[Annotator "RC"]
[PlyCount "99"]
[EventDate "2018.10.24"]
[EventType "swiss"]
[EventCountry "THA"]
[SourceTitle "playchess.com"]
[Source "ChessBase"]
[SourceQuality "1"]
[TimeControl "5400+30"]

1. c4 {[%emt 0:00:00]} c6 {[%emt 0:02:31]} 2. g3 {[%emt 0:00:00]} Nf6 {[%emt 0:00:13]} 3. Nf3 {[%emt 0:00:00]} d5 {[%emt 0:00:07]} 4. Bg2 {[%emt 0:00:00]} Bg4 {[%emt 0:04:36]} 5. Ne5 {[%emt 0:00:15]} Be6 {[%emt 0:04:44]} 6. cxd5 {[%emt 0:00:14]} Bxd5 {[%emt 0:00:35]} 7. Nf3 {[%emt 0:00:02]} c5 {[%emt 0:00:21]} 8. Nc3 {[%emt 0:00:07]} Bc6 {[%emt 0:00:03]} 9. O-O {[%emt 0:00:13]} e6 {[%emt 0:00:08]} 10. Re1 {[%emt 0:00:36]} Be7 {[%emt 0:00:12]} 11. e4 {[%emt 0:00:28]} O-O {[%emt 0:02:45]} 12. d4 {[%emt 0:00:15]} cxd4 {[%emt 0:00:01]} 13. Nxd4 {[%emt 0:00:02]} Qb6 {[%emt 0:00:29]} 14. Nb3 {[%emt 0:13:38]} Rd8 {[%emt 0:09:01]} 15. Qe2 {[%emt 0:00:23]} Na6 {[%emt 0:10:06]} 16. Be3 {[%emt 0:01:48]} Qb4 {[%emt 0:02:20]} 17. Rac1 {[%emt 0:00:33]} Nc5 {[%emt 0:18:36]} 18. Nxc5 {[%emt 0:03:21]} Bxc5 {[%emt 0:00:01]} 19. Nd5 {[%emt 0:05:49]} exd5 {[%emt 0:00:58]} 20. Bxc5 {[%emt 0:00:03]} Qb5 {[%emt 0:00:43]} 21. Qxb5 {[%emt 0:01:46]} Bxb5 {[%emt 0:00:01]} 22. Be7 {[%emt 0:00:12]} Rd7 {[%emt 0:06:03]} 23. Bxf6 {[%emt 0:00:32]} gxf6 {[%emt 0:00:01]} 24. exd5 {[%emt 0:00:48]} Rad8 {[%emt 0:00:08]} 25. Rc3 {[%emt 0:07:11]} b6 {[%emt 0:01:05]} 26. Bf3 {[%emt 0:02:38]} Ba6 {[%emt 0:00:55]} 27. Rd1 {[%emt 0:00:07]} Kf8 {[%emt 0:01:06]} 28. Kg2 {[%emt 0:00:23]} Bb7 {[%emt 0:01:34]} 29. Rcd3 {[%emt 0:01:07]} Ke7 {[%emt 0:02:28]} 30. d6+ {[%emt 0:03:47]} Rxd6 {[%emt 0:01:08]} 31. Rxd6 {[%emt 0:00:09]} Bxf3+ {[%emt 0:00:06]} 32. Kxf3 {[%emt 0:00:03]} Rxd6 {[%emt 0:00:00]} 33. Rxd6 {[%emt 0:00:06]} Kxd6 {[%emt 0:00:20]} 34. Ke4 {[%emt 0:00:01]} Ke6 {[%emt 0:04:37]} 35. g4 {[%emt 0:08:48]} f5+ {[%emt 0:15:55]} 36. gxf5+ {[%emt 0:00:44]} Kd6 {[%emt 0:01:49]} 37. f6 {[%emt 0:03:16]} Ke6 {[%emt 0:00:02]} 38. a4 {[%emt 0:00:04]} a5 {[%emt 0:06:58]} 39. Kd4 {[%emt 0:03:26]} Kd6 {[%emt 0:00:30]} 40. Kc4 {[%emt 0:00:30]} Kc6 {[%emt 0:00:30]} 41. b4 {[%emt 0:00:30]} axb4 {[%emt 0:00:30]} 42. Kxb4 {[%emt 0:00:30]} Kc7 {[%emt 0:00:30]} 43. Kb5 {[%emt 0:00:30]} Kb7 {[%emt 0:00:30]} 44. f3 {[%emt 0:00:30]} h6 {[%emt 0:00:30]} 45. h3 {[%emt 0:00:30]} h5 {[%emt 0:00:30]} 46. h4 {[%emt 0:00:30]} Kc7 {[%emt 0:00:30]} 47. Ka6 {[%emt 0:00:30]} Kc6 {[%emt 0:00:30]} 48. f4 {[%emt 0:00:30]} Kc7 {[%emt 0:00:30]} 49. Ka7 {[%emt 0:00:30]} Kc6 {[%emt 0:00:30]} 50. Kb8 {[%emt 0:00:30]} 1-0

[Event "Thailand Pattaya Open 2018"]
[Site "Pattaya"]
[Date "2018.10.29"]
[Round "6"]
[White "Grafil, Franz Robert"]
[Black "Laylo, Darwin"]
[Result "0-1"]
[ECO "A15"]
[WhiteElo "2219"]
[BlackElo "2427"]
[Annotator "RC"]
[PlyCount "116"]
[EventDate "2018.10.24"]
[EventType "swiss"]
[EventCountry "THA"]
[SourceTitle "playchess.com"]
[Source "ChessBase"]
[SourceQuality "1"]
[TimeControl "5400+30"]

1. Nf3 {[%emt 0:00:00]} Nf6 {[%emt 0:07:55]} 2. c4 {[%emt 0:00:26]} g6 {[%emt 0:01:24]} 3. b4 {[%emt 0:00:29]} a5 {[%emt 0:00:56]} 4. b5 {[%emt 0:01:32]} c6 {[%emt 0:02:43]} 5. e3 {[%emt 0:01:50]} Bg7 {[%emt 0:01:37]} 6. Bb2 {[%emt 0:00:23]} O-O {[%emt 0:01:39]} 7. Be2 {[%emt 0:00:28]} a4 {[%emt 0:02:14]} 8. Na3 {[%emt 0:01:01]} d5 {[%emt 0:00:24]} 9. O-O {[%emt 0:01:34]} Bg4 {[%emt 0:05:32]} 10. Rb1 {[%emt 0:04:13]} Nbd7 {[%emt 0:01:04]} 11. bxc6 {[%emt 0:01:19]} bxc6 {[%emt 0:00:02]} 12. Nd4 {[%emt 0:00:12]} Bxe2 {[%emt 0:01:16]} 13. Qxe2 {[%emt 0:00:13]} Rc8 {[%emt 0:05:30]} 14. cxd5 {[%emt 0:03:57]} cxd5 {[%emt 0:00:27]} 15. Rfc1 {[%emt 0:00:40]} Nc5 {[%emt 0:00:30]} 16. Nab5 {[%emt 0:01:20]} Qd7 {[%emt 0:04:25]} 17. Ba3 {[%emt 0:05:22]} Ne6 {[%emt 0:00:05]} 18. Nxe6 {[%emt 0:15:33]} Qxe6 {[%emt 0:00:11]} 19. Nd4 {[%emt 0:02:11]} Qd7 {[%emt 0:00:49]} 20. Qb5 {[%emt 0:01:36]} Rxc1+ {[%emt 0:02:09]} 21. Rxc1 {[%emt 0:01:04]} Qxb5 {[%emt 0:01:31]} 22. Nxb5 {[%emt 0:00:02]} Re8 {[%emt 0:00:01]} 23. f3 {[%emt 0:07:26]} e5 {[%emt 0:07:14]} 24. Nd6 {[%emt 0:01:55]} Rb8 {[%emt 0:00:51]} 25. Rc8+ {[%emt 0:10:51]} Rxc8 {[%emt 0:00:09]} 26. Nxc8 {[%emt 0:00:02]} Bf8 {[%emt 0:00:12]} 27. Bxf8 {[%emt 0:02:51]} Kxf8 {[%emt 0:00:01]} 28. Kf2 {[%emt 0:00:37]} Nd7 {[%emt 0:02:13]} 29. Ke2 {[%emt 0:03:53]} e4 {[%emt 0:00:39]} 30. d4 {[%emt 0:01:06]} f5 {[%emt 0:01:18]} 31. f4 {[%emt 0:01:40]} Ke8 {[%emt 0:00:15]} 32. h3 {[%emt 0:00:30]} Kd8 {[%emt 0:01:16]} 33. Nd6 {[%emt 0:05:02]} Nb6 {[%emt 0:01:10]} 34. g4 {[%emt 0:25:42]} Ke7 {[%emt 0:00:34]} 35. Nb5 {[%emt 0:00:00]} fxg4 {[%emt 0:04:41]} 36. hxg4 {[%emt 0:00:00]} h6 {[%emt 0:01:12]} 37. a3 {[%emt 0:00:00]} h5 {[%emt 0:00:44]} 38. gxh5 {[%emt 0:00:00]} gxh5 {[%emt 0:00:01]} 39. Nc3 {[%emt 0:00:00]} Ke6 {[%emt 0:00:18]} 40. Kf2 {[%emt 0:00:00]} h4 {[%emt 0:02:29]} 41. Kg2 {[%emt 0:00:00]} Nc4 {[%emt 0:00:38]} 42. Kf2 {[%emt 0:00:00]} h3 {[%emt 0:02:33]} 43. Kg3 {[%emt 0:00:00]} Nxe3 {[%emt 0:00:50]} 44. Kxh3 {[%emt 0:00:00]} Nc2 {[%emt 0:00:52]} 45. Nxa4 {[%emt 0:00:00]} Nxd4 {[%emt 0:02:59]} 46. Nc3 {[%emt 0:00:00]} e3 {[%emt 0:00:17]} 47. Kg2 {[%emt 0:00:00]} Nc2 {[%emt 0:01:36]} 48. Kf3 {[%emt 0:00:00]} d4 {[%emt 0:00:17]} 49. Nd1 {[%emt 0:00:00]} Ne1+ {[%emt 0:06:10]} 50. Ke2 {[%emt 0:00:00]} Ng2 {[%emt 0:00:08]} 51. Kf3 {[%emt 0:00:00]} Kf5 {[%emt 0:00:56]} 52. a4 {[%emt 0:01:45]} Nh4+ {[%emt 0:01:36]} 53. Ke2 {[%emt 0:00:01]} Ke4 {[%emt 0:00:35]} 54. Nb2 {[%emt 0:02:12]} Nf5 {[%emt 0:00:29]} 55. a5 {[%emt 0:00:17]} d3+ {[%emt 0:00:11]} 56. Nxd3 {[%emt 0:02:56]} Nd4+ {[%emt 0:00:02]} 57. Ke1 {[%emt 0:00:26]} Kxd3 {[%emt 0:00:04]} 58. a6 {[%emt 0:00:15]} e2 {[%emt 0:00:15]} 0-1

[Event "Thailand Pattaya Open 2018"]
[Site "Pattaya"]
[Date "2018.10.29"]
[Round "6"]
[White "Saeheng, Boonsueb"]
[Black "Quizon, Daniel"]
[Result "1/2-1/2"]
[ECO "E94"]
[WhiteElo "2163"]
[BlackElo "2334"]
[Annotator "NA"]
[PlyCount "53"]
[EventDate "2018.10.24"]
[EventType "swiss"]
[EventCountry "THA"]
[SourceTitle "playchess.com"]
[Source "ChessBase"]
[SourceQuality "1"]
[TimeControl "5400+30"]

1. Nf3 {[%emt 0:00:00]} Nf6 {[%emt 0:00:19]} 2. c4 {[%emt 0:00:28]} g6 {[%emt 0:02:23]} 3. Nc3 {[%emt 0:00:45]} d6 {[%emt 0:00:41]} 4. d4 {[%emt 0:01:29]} Bg7 {[%emt 0:00:36]} 5. e4 {[%emt 0:02:34]} O-O {[%emt 0:01:21]} 6. Be2 {[%emt 0:03:41]} e5 {[%emt 0:00:55]} 7. O-O {[%emt 0:03:53]} exd4 {[%emt 0:03:45]} 8. Nxd4 {[%emt 0:01:28]} Nc6 {[%emt 0:00:27]} 9. Be3 {[%emt 0:04:10]} Re8 {[%emt 0:03:27]} 10. f3 {[%emt 0:00:43]} Nh5 {[%emt 0:08:12]} 11. Qd2 {[%emt 0:15:30]} Nf4 {[%emt 0:13:11]} 12. Nxc6 {[%emt 0:03:35]} Nxe2+ {[%emt 0:01:13]} 13. Nxe2 {[%emt 0:00:20]} bxc6 {[%emt 0:00:10]} 14. Bd4 {[%emt 0:02:00]} c5 {[%emt 0:02:12]} 15. Bxg7 {[%emt 0:03:09]} Kxg7 {[%emt 0:00:09]} 16. Nf4 {[%emt 0:01:15]} Be6 {[%emt 0:02:20]} 17. Qc3+ {[%emt 0:11:18]} Qf6 {[%emt 0:01:11]} 18. Rac1 {[%emt 0:00:18]} Rab8 {[%emt 0:04:21]} 19. b3 {[%emt 0:05:10]} Qxc3 {[%emt 0:00:49]} 20. Rxc3 {[%emt 0:01:04]} f6 {[%emt 0:00:21]} 21. Nxe6+ {[%emt 0:01:22]} Rxe6 {[%emt 0:00:06]} 22. Kf2 {[%emt 0:00:41]} a5 {[%emt 0:03:33]} 23. a4 {[%emt 0:05:22]} Ree8 {[%emt 0:05:40]} 24. Rd1 {[%emt 0:00:43]} Re5 {[%emt 0:03:56]} 25. Rd5 {[%emt 0:00:54]} Rbe8 {[%emt 0:01:07]} 26. Rcd3 {[%emt 0:01:02]} Rxd5 {[%emt 0:02:48]} 27. exd5 {[%emt 0:01:00]} 1/2-1/2

[Event "Thailand Pattaya Open 2018"]
[Site "Pattaya"]
[Date "2018.10.29"]
[Round "7"]
[White "Tran, Tuan Minh"]
[Black "Nguyen, Huynh Minh Huy"]
[Result "1-0"]
[ECO "D30"]
[WhiteElo "2506"]
[BlackElo "2410"]
[Annotator "ChessBase"]
[PlyCount "37"]
[EventDate "2018.10.24"]
[EventType "swiss"]
[EventCountry "THA"]
[SourceTitle "playchess.com"]
[Source "ChessBase"]
[SourceQuality "1"]
[TimeControl "5400+30"]

1. d4 {[%emt 0:01:25]} d5 {[%emt 0:00:00]} 2. c4 {[%emt 0:00:22]} c6 {[%emt 0:00:00]} 3. Nf3 {[%emt 0:00:06]} Nf6 {[%emt 0:00:04]} 4. e3 {[%emt 0:00:50]} e6 {[%emt 0:00:56]} 5. Nbd2 {[%emt 0:00:13]} Nbd7 {[%emt 0:06:56]} 6. Bd3 {[%emt 0:00:12]} c5 {[%emt 0:00:30]} 7. O-O {[%emt 0:00:30]} cxd4 {[%emt 0:00:30]} 8. Nxd4 {[%emt 0:00:30]} e5 {[%emt 0:00:30]} 9. Ne2 {[%emt 0:00:30]} Nb6 {[%emt 0:00:30]} 10. b3 {[%emt 0:00:30]} Be6 {[%emt 0:00:30]} 11. Bb2 {[%emt 0:00:30]} Bb4 {[%emt 0:00:30]} 12. Bxe5 {[%emt 0:00:30]} Bxd2 {[%emt 0:00:30]} 13. Bxf6 {[%emt 0:00:30]} Qxf6 {[%emt 0:00:30]} 14. cxd5 {[%emt 0:00:30]} O-O-O {[%emt 0:00:30]} 15. dxe6 {[%emt 0:00:30]} Rxd3 {[%emt 0:00:30]} 16. Qc2+ {[%emt 0:00:30]} Bc3 {[%emt 0:00:30]} 17. Rac1 {[%emt 0:00:30]} Rhd8 {[%emt 0:00:30]} 18. Nxc3 {[%emt 0:00:30]} Kb8 {[%emt 0:00:30]} 19. Nb5 {[%emt 0:00:30]} 1-0